Cogmind - Beta 13 @@@ ROGUE MODE // 2024.03.21 @ 05:01:46 Player: Dylbot Result: Destroyed by G-34 Mercenary with Small Laser Performance ------------- Evolutions (1) 500 Regions Visited (3) 600 Robots Destroyed (38) 190 Value Destroyed (676) 676 Prototype IDs (2) 40 Alien Tech Used (0) 0 Bonus (179) 179 TOTAL SCORE: 2185 Bonus ------- Follower Combat Kills 193 Friendly Fire -14 Cogmind --------- Core Integrity 0/400 Matter 295/300 Energy 100/100 System Corruption 0% Temperature Cool (12) Movement Core (700) Ox13 Location -9/Materials Parts ------- > --- POWER (2) -------- (None) > --- PROPULSION (2) --- (None) > --- UTILITY (3) ------ High-capacity Storage Unit > --- WEAPON (2) ------- (None) > --- INVENTORY (20) --- Carbon-fiber Leg Carbon-fiber Leg Airjet Airjet Airjet Peak State ------------ > --- POWER ------------ Light Nuclear Core Light Nuclear Core > --- PROPULSION ------- Carbon-fiber Leg Carbon-fiber Leg > --- UTILITY ---------- High-capacity Storage Unit Signal Interpreter Shield Generator > --- WEAPON ----------- Shock Bomb Launcher Shock Bomb Launcher > --- INVENTORY -------- Carbon-fiber Leg Carbon-fiber Leg Airjet Airjet Airjet Airjet Shock Bomb Launcher [Rating: 24] Favorites ----------- Power Light Nuclear Core Engine Ion Engine Power Core Light Nuclear Core Propulsion Light Treads Treads Light Treads Leg Carbon-fiber Leg Wheel Wheel Hover Unit Airjet Flight Unit Flight Unit Utility Signal Interpreter Device Shield Generator Storage High-capacity Storage Unit Processor Signal Interpreter Weapon Assault Rifle Energy Gun Beam Rifle Ballistic Gun Assault Rifle Launcher Grenade Launcher Build | -11 -10 -10 -9 ------- Run | Yrd Mat Min Mat Slots Evolved 2 | . . . 2 Power 1 | . . . 1 Propulsion . | . . . . Utility 1 | . . . 1 Weapon . | . . . . Parts Attached 29 | 9 7 1 12 Power 4 | 1 1 1 1 Engine 2 | 1 1 . . Core 2 | . . 1 1 Reactor . | . . . . Propulsion 9 | 2 3 . 4 Treads 2 | 2 . . . Leg 2 | . . . 2 Wheel 2 | . 2 . . Hover 2 | . . . 2 Flight 1 | . 1 . . Utility 7 | 4 2 . 1 Device 4 | 3 . . 1 Storage 2 | 1 1 . . Processor 1 | . 1 . . Hackware . | . . . . Protection . | . . . . Artifact . | . . . . Weapon 9 | 2 1 . 6 Energy Gun 1 | . . . 1 Energy Cannon . | . . . . Ballistic Gun 3 | 2 . . 1 Ballistic Cannon . | . . . . Launcher 5 | . 1 . 4 Special Weapon . | . . . . Impact Weapon . | . . . . Slashing Weapon . | . . . . Piercing Weapon . | . . . . Special Melee Weapon . | . . . . Unidentified Prototypes . | . . . . Parts Lost 11 | . 1 . 10 Power 3 | . 1 . 2 Propulsion 2 | . . . 2 Utility 2 | . . . 2 Weapon 4 | . . . 4 Highest Loss Streak 8 | . 1 . 8 To Critical Strikes . | . . . . Average Slot Usage (%) 89 | . 92 100 84 Engine 3 | . 7 . . Core 9 | . . 13 17 Treads 11 | . 26 . . Leg 8 | . . . 16 Wheel 2 | . . 28 . Device 7 | . 7 . 8 Storage 12 | . 13 14 11 Processor 9 | . 6 14 10 Energy Gun 1 | . . . 4 Ballistic Gun 11 | . 19 14 5 Launcher 9 | . 8 14 9 Naked Turns . | . . . . Heaviest Build 64 | 15 48 50 64 Greatest Support 40 | 40 40 20 30 Greatest Overweight (x) 18 | 4 15 2 18 Average Overweight (x) 1 | . . 2 2 Largest Inventory Capacity 20 | 8 20 20 20 Average Capacity 14 | 7 12 20 20 Most Carried 8 | 7 7 5 8 Average Carried 5 | 4 5 4 6 Final Capacity 20 | 8 20 20 20 Final Carried 6 | 6 4 5 5 Class Distribution -------------------- 100% | Mutant Dominant Class ---------------- Mutant | -10/Materials Mutant | -10/Mines Mutant | -9/Materials Resources | -11 -10 -10 -9 ----------- Run | Yrd Mat Min Mat Matter Collected 837 | 398 178 74 187 Remotely . | . . . . Salvage Created 1045 | 315 179 118 433 Parts 81 | 29 21 8 23 Haulers Intercepted . | . . . . Recyclers Shooed 1 | . . 1 . Parts Field Recycled . | . . . . Retrieved Matter . | . . . . Parts Self-Destructed . | . . . . Prevented . | . . . . Kills | -11 -10 -10 -9 ------- Run | Yrd Mat Min Mat Combat Hostiles Destroyed 19 | . 5 3 11 Guns 11 | . 2 1 8 AOE 8 | . 3 2 3 Classes Destroyed 9 | 3 4 . 2 Worker 3 | 2 1 . . Builder 2 | . 2 . . Tunneler 8 | 8 . . . Recycler 2 | 1 . . 1 Mechanic 1 | . . . 1 Operator 1 | . . . 1 Watcher 2 | . 1 . 1 Swarmer 7 | . 2 . 5 Grunt 12 | . 3 3 6 Best Kill Streak 8 | 2 4 2 8 Combat Bots Only 6 | . 3 2 6 Max Kills in Single Turn 5 | 1 1 1 5 Gunslinging . | . . . . Exploded 3 | . 1 1 3 Melee . | . . . . Uniques/NPCs Destroyed . | . . . . Combat | -11 -10 -10 -9 -------- Run | Yrd Mat Min Mat Hostile Shots Fired 149 | . 21 3 125 Missed 26 | . 5 1 20 Damage Taken 1611 | . 320 72 1219 Core 502 | . 79 19 404 Absorbed by Shields 78 | . . . 78 Core Remaining (%) 80 | 100 . 60 . Volleys Fired 73 | 18 20 3 32 Largest 2 | 2 2 2 2 Hottest 92 | 40 50 50 92 Shots Fired 119 | 36 32 6 45 Gun 103 | 36 26 3 38 Cannon . | . . . . Launcher 16 | . 6 3 7 Special . | . . . . Kinetic 75 | 36 26 3 10 Thermal 28 | . . . 28 Explosive 9 | . 6 3 . Electromagnetic 7 | . . . 7 Robot Hit Streak 11 | 10 4 4 11 Robot Miss Streak 5 | 3 1 1 5 Penetration Max . | . . . . Secondary Targets . | . . . . Shots Hit Robots 75 | 22 20 4 29 Core Hits 50 | 12 11 7 20 Critical Kills . | . . . . Critical Parts Destroyed . | . . . . Critical Strikes 1 | . . . 1 Burn 1 | . . . 1 Melee Attacks . | . . . . Impact . | . . . . Slashing . | . . . . Piercing . | . . . . Sneak Attacks . | . . . . Combat Hostiles . | . . . . Follow-up Attacks . | . . . . Damage Inflicted 2040 | 269 522 183 1066 Guns 943 | 269 208 22 444 Cannons . | . . . . Explosions 1080 | . 314 144 622 Melee . | . . . . Ramming 17 | . . 17 . Kinetic 615 | 269 208 22 116 Thermal 328 | . . . 328 Explosive 868 | . 314 144 410 Electromagnetic 212 | . . . 212 Impact . | . . . . Slashing . | . . . . Piercing . | . . . . Highest Corruption . | . . . . Average Corruption . | . . . . Corruption Purged . | . . . . Corruption Blocked . | . . . . Overload Shots . | . . . . Overflow Damage 66 | . 1 . 65 Projectiles . | . . . . Explosions 66 | . 1 . 65 Melee . | . . . . Knockbacks . | . . . . Impact . | . . . . Kinetic . | . . . . Secondary . | . . . . Self-Inflicted Damage 286 | . 54 43 189 Shots 13 | . 4 3 6 Rammed 2 | . . 2 . Targets Rammed 2 | . . 2 . Kicked . | . . . . Crushed . | . . . . Highest Temperature 464 | 6 8 7 464 Average Temperature 194 | 6 4 4 215 Received Heat Transfer 547 | . 60 15 472 Effects 12 | . . . 12 Shutdowns 2 | . . . 2 Energy Bleed 1 | . . . 1 Interference 4 | . . . 4 Matter Decay 1 | . . . 1 Damage (major) 4 | . . . 4 Siege Activations . | . . . . Robots Corrupted . | . . . . Combat Hostiles . | . . . . Parts Fried . | . . . . Impact Corruptions . | . . . . Robots Melted . | . . . . Combat Hostiles . | . . . . Parts Melted 1 | . . . 1 Heat Transferred 925 | . . . 925 Parts Sabotaged . | . . . . Parts Stolen . | . . . . Parts Stripped . | . . . . Power Chain Reactions 1 | . . . 1 Alert | -11 -10 -10 -9 ------- Run | Yrd Mat Min Mat Peak Influence 349 | 55 124 180 349 Initial 70 | . . 26 70 Average 93 | 28 58 120 155 Maximum Alert Level 1 | . . . 1 Low Security (%) 91 | 100 100 100 77 Level 1 8 | . . . 22 Level 2 . | . . . . Level 3 . | . . . . Level 4 . | . . . . Level 5 . | . . . . High Security . | . . . . Max Security . | . . . . Squads Dispatched 8 | . 3 . 5 Investigation 4 | . 1 . 3 Extermination . | . . . . Reinforcement 4 | . 2 . 2 Assault . | . . . . Garrison . | . . . . Intercept . | . . . . Searches Triggered . | . . . . Construction Impeded . | . . . . Haulers Reinforced . | . . . . Active Scanning Responses . | . . . . Cargo Convoy Interrupts . | . . . . Stealth | -11 -10 -10 -9 --------- Run | Yrd Mat Min Mat Distress Signals 3 | . 1 . 2 Communications Jammed . | . . . . Distress Signals . | . . . . Times Spotted 38 | . 10 3 25 Peak Tracking Total 11 | . 5 2 11 Tactical Retreats 1 | . . . 1 Traps | -11 -10 -10 -9 ------- Run | Yrd Mat Min Mat Traps Triggered 3 | . 2 . 1 Indirectly . | . . . . Trap Hack Attempts . | . . . . Triggered . | . . . . Disarmed . | . . . . Reprogrammed 6 | . 6 . . Reused . | . . . . Traps Extracted . | . . . . Installed . | . . . . Triggered . | . . . . Machines | -11 -10 -10 -9 ---------- Run | Yrd Mat Min Mat Machines Disabled 3 | . . 1 2 Max in Single Turn 1 | . . 1 1 Machines Repaired . | . . . . Machines Dismantled . | . . . . Machines Sabotaged . | . . . . Overloaded Fab Kills . | . . . . Hacking | -11 -10 -10 -9 --------- Run | Yrd Mat Min Mat Machines Accessed 7 | . 4 1 2 Terminals 5 | . 3 1 1 Fabricators . | . . . . Repair Stations . | . . . . Recycling Units 1 | . 1 . . Scanalyzers 1 | . . . 1 Garrison Access . | . . . . Total Hacks 22 | . 11 3 8 Successful 11 | . 6 1 4 Failed 11 | . 5 2 4 Catastrophic 1 | . 1 . . Database Lockouts . | . . . . Manual . | . . . . Terminals 15 | . 9 3 3 Fabricators . | . . . . Repair Stations . | . . . . Recycling Units 2 | . 2 . . Scanalyzers 5 | . . . 5 Garrison Access . | . . . . Terminal Hacks 7 | . 5 1 1 Record 1 | . . 1 . Prototype ID Bank 1 | . 1 . . Branch Access Points 1 | . . . 1 Reprogram Traps 1 | . 1 . . Dispatch Records 1 | . 1 . . Hauler Manifests 2 | . 2 . . Fabricator Hacks . | . . . . Repair Station Hacks . | . . . . Recycling Unit Hacks 1 | . 1 . . Retrieve Components 1 | . 1 . . Scanalyzer 3 | . . . 3 Insert Component 2 | . . . 2 Analyze 1 | . . . 1 Garrison Access Hacks . | . . . . Unauthorized Hacks . | . . . . Terminals . | . . . . Fabricators . | . . . . Repair Stations . | . . . . Recycling Units . | . . . . Scanalyzers . | . . . . Garrison Access . | . . . . Data Cores Recovered . | . . . . Used . | . . . . Hacking Detections 6 | . 3 1 2 Full Trace Events 3 | . 1 . 2 Feedback Events . | . . . . Feedback Blocked . | . . . . Robot Schematics Acquired . | . . . . Robots Built . | . . . . Authchips . | . . . . Time . | . . . . Total Robot Build Rating . | . . . . Part Schematics Acquired 1 | . . . 1 Parts Built . | . . . . Authchips . | . . . . Time . | . . . . Total Part Build Rating . | . . . . Parts Repaired . | . . . . Time . | . . . . Parts Recycled . | . . . . Recycled Matter . | . . . . Retrieved Matter . | . . . . Retrieved Components 5 | . 5 . . Parts Scanalyzed 2 | . . . 2 Part Schematics Acquired 1 | . . . 1 Parts Damaged 1 | . . . 1 Bothacking | -11 -10 -10 -9 ------------ Run | Yrd Mat Min Mat Used RIF Installer . | . . . . Robots Hacked . | . . . . Non-combat . | . . . . Combat . | . . . . Robot Hacks Applied . | . . . . Relay Couplers Released . | . . . . Fabnet Peak Effective % . | . . . . Robots Rewired . | . . . . Allies Hacked . | . . . . Hacks Repelled . | . . . . Allies | -11 -10 -10 -9 -------- Run | Yrd Mat Min Mat Total Allies 2 | . . 2 . Largest Group 2 | . . 2 2 Highest-Rated Group 45 | . . 45 45 Highest-Rated Ally 31 | . . 31 31 Total Orders . | . . . . Ally Attacks 18 | . . 2 16 Total Damage 252 | . . 42 210 Kills 7 | . . 1 6 Allies Corrupted . | . . . . Allies Melted . | . . . . Intel | -11 -10 -10 -9 ------- Run | Yrd Mat Min Mat Robot Analysis Total . | . . . . Derelict Logs Recovered 2 | . . 2 . Drone Launches . | . . . . Drone Recoveries . | . . . . Exploration | -11 -10 -10 -9 ------------- Run | Yrd Mat Min Mat Turns Passed 1952 | 407 660 144 741 Spaces Moved 850 | 186 302 118 244 Core 72 | 54 2 . 16 Treads 415 | 132 283 . . Legs 219 | . . . 219 Wheels 138 | . 17 118 3 Hover 6 | . . . 6 Flight . | . . . . Fastest Speed 50 | 50 110 110 110 Average Speed 192 | 175 181 110 257 Slowest Speed 950 | 250 800 110 950 Overloaded Moves . | . . . . Propulsion Burnouts . | . . . . Robots Hopped . | . . . . Cave-ins Triggered . | . . . . Exploration Rate (%) 24 | 10 50 19 20 Regions Visited 3 Branch Regions 1 Pre-discovered Areas . | . . . . Known Exits Taken 2 | . 1 1 . Unknown Exits Taken 1 | 1 . . . Scrap Searched . | . . . . Spaces Dug . | . . . . Terrain Destroyed 107 | . 42 23 42 Melee . | . . . . Projectile . | . . . . AOE 107 | . 42 23 42 Terrain Rammed . | . . . . Walls Destroyed . | . . . . Machines Disabled . | . . . . Actions | -11 -10 -10 -9 --------- Run | Yrd Mat Min Mat Total 1063 | 233 386 126 318 Wait 46 | . 42 . 4 Move 847 | 185 301 117 244 Hop . | . . . . Pick Up 40 | 17 7 2 14 Fast Attach 1 | . 1 . . Attach 27 | 9 5 1 12 Detach 4 | . 2 . 2 Swap 1 | . 1 . . Drop 22 | 4 7 1 10 Fire 73 | 18 20 3 32 Melee . | . . . . Ram 2 | . . 2 . Kick . | . . . . Crush . | . . . . Escape Stasis . | . . . . Rewire . | . . . . Trap . | . . . . Miscellaneous . | . . . . Route ------- -11/Scrapyard -10/Materials -10/Mines (discovered 2 exits: *Mat x2) -9/Materials (discovered 2 exits: Mat / Min) History --------- Turn | Location | Event 8 | -11/Scrapyard | Discovered new exit (range 16) 408 | -11/Scrapyard | Entered Materials 409 | -10/Materials | Build established: Mutant 1053 | -10/Materials | Discovered new exit (range 9) 1067 | -10/Materials | Identified exit to Mines 1068 | -10/Materials | Entered Mines 1102 | -10/Mines | Identified exit to Materials 1139 | -10/Mines | Learned location of 1 exit from Materials 1163 | -10/Mines | Discovered exit to Materials (range 8) 1212 | -10/Mines | Entered Materials 1212 | -9/Materials | Accompanied by 2 allies 1212 | -9/Materials | Evolved 2 slots: Power x1, Utility x1 1213 | -9/Materials | Identified exit to Materials 1217 | -9/Materials | Led the pair of lost Derelicts to an unsafe place 1551 | -9/Materials | Identified exit to Mines 1865 | -9/Materials | Core integrity fell below 50% 1877 | -9/Materials | Lost 8 parts (2p2n1u3w) 1929 | -9/Materials | Core integrity fell below 20% 1953 | -9/Materials | Destroyed by G-34 Mercenary with Small Laser Last Messages --------------- K-01 Serf collects debris. U-05 Engineer lays Concrete. R-06 Scavenger collects Aluminum Leg. U-05 Engineer lays Concrete. K-01 Serf collects debris. U-05 Engineer lays Concrete. K-01 Serf collects debris. U-05 Engineer lays Concrete. Door malfunctions. Shock Bomb Launcher destroyed. K-01 Serf collects debris. G-34 Mercenary IFF system glitched. K-01 Serf destroyed. G-34 Mercenary misfires. Signal Interpreter destroyed. K-01 Serf collects debris. K-01 Serf destroyed. K-01 Serf collects debris. U-05 Engineer lays Concrete. U-05 Engineer builds a Wall. Map ----- +----------------------------------------------------+ | ?????????????????????????????????????????????????? | | ?????????????????????????????????????????????????? | | ?????????????????????????????????????????????????? | | ?????????????????????????????????????????????????? | | ?????????????????????????????????????????????????? | | ?????????????????????????????????????????????????? | | ?????????????????????????????????????????????????? | | ?????????????????????????????????????????????????? | | ?????????????????????????????????????????????????? | | ?????????????????????????????????????????????????? | | ?????????????????????????????????????????????????? | | ?????????????????????????????????????????????????? | | ?????????????????????????????????????????????????? | | ?????????????????????????????????????????????????? | | ?????????????????????????????????????????????????? | | ?????????????????????????????????????????????????? | | ?????????????????????????????????????????????????? | | ?????????????????????????????????????????????????? | | ?????????????????????????????????????????????????? | | ?????????????????????????????????????????????????? | | ?????????????????????????????????????????????????? | | ?????????????????????????????????????????????????? | | ?????????????????????????????????????????????????? | | ?????????????#+################################### | | ?????????? t w k | | ?????????? g @ % | | ?????????? w gr u % = | | ?????????????#/#### ######u######+############## | | ??????????????????# ??# # % #???????? | | ??????????????????????# =% # % #???????? | | ??????????????????????# * # * #???????? | | ??????????????????????# # ###??????? | | ??????????????????????# # #??????? | | ??????????????????????# ## ##??????? | | ??????????????????????# %## # #???????? | | ??????????????????????# #### ###???????? | | ??????????????????????###########??#####?????????? | | ?????????????????????????????????????????????????? | | ?????????????????????????????????????????????????? | | ?????????????????????????????????????????????????? | | ?????????????????????????????????????????????????? | | ?????????????????????????????????????????????????? | | ?????????????????????????????????????????????????? | | ?????????????????????????????????????????????????? | | ?????????????????????????????????????????????????? | | ?????????????????????????????????????????????????? | | ?????????????????????????????????????????????????? | | ?????????????????????????????????????????????????? | | ?????????????????????????????????????????????????? | | ?????????????????????????????????????????????????? | +----------------------------------------------------+ Best States ------------- Heat Dissipation 28 Energy Generation 23 Energy Capacity 250 Matter Stores 300 Matter Capacity 300 Sight Range 16 Terrain Scan Range 16 Terrain Scan Density 10 Evasion (%) 40 Recoil Reduction 2 Item Schematics ----------------- Shock Bomb Launcher | -9/Materials | Scanalyzed Robot Schematics ------------------ None Fabricated ------------ Nothing Alien Tech Used ----------------- None Achievements -------------- Shopping List Challenges ------------ None Game ------ Seed FieldGaussDetonator Manual? 0 Play Time 00:24:36 Cumulative 2.2 hours Start 2024.03.21 @ 04:40:25 End 2024.03.21 @ 05:01:46 Sessions 1 Manual Loads 0 Difficulty Rogue Special Mode None Game No. 6 Rogue 6 Adventurer 0 Explorer 0 Win Type - Total 0 Types 0/0/0/0/0/0/0/0/0 Lore% 3 Gallery% 6 Achievement% 5 Wizard Run 0 Options --------- Layout 1 ASCII 0 Keyboard 0 Movement Mouse Keybinds 0 Fullscreen 2 Font 32/SmallcapsGlow Map View 50x35 Zoom Use 0% Tactical HUD 0 Map Filters NONE Filters NONE Steam 1 RUN: f4a28d24-474c-4e08-8802-46407f7d0a54